fUSD/lending_fUSD_20251224
["ID","MTS","AMOUNT","RATE_DAILY","PERIOD"]
[399628976,1766572830342,10000.01,0.0001374,2]
[399628977,1766572830365,10000.01,0.0001374,2]
[399628978,1766572830387,10000.01,0.0001374,2]
[399628979,1766572830409,10000.01,0.0001374,2]
[399628980,1766572830433,5381.15283046,0.0001374,2]
[399628981,1766572861399,3552.743515,0.00014524,2]
[399628982,1766572882507,166.66,0.0001304,2]
[399628983,1766572882903,166.66,0.00013314,2]
[399628984,1766572883109,166.66,0.00013589,2]
[399628985,1766572883299,166.66,0.00013864,2]
[399628986,1766572884625,166.66,0.00014138,2]
[399628987,1766572884669,166.66,0.00014413,2]
[399628988,1766572958293,-2500.0,0.00014597,2]
[399628989,1766572958317,-300.0,0.00014597,2]
[399628990,1766572958341,-300.0,0.00014597,2]
[399628991,1766572958365,-949.0,0.00014598,2]
[399629000,1766573282016,66.15365454,0.00013667,2]
[399629001,1766573282043,133.84634546,0.00013667,2]
[399629002,1766573305296,-300.0,0.00014595,2]
[399629003,1766573305320,-300.0,0.00014595,2]
[399629004,1766573305344,-1200.0,0.00014595,2]
[399629005,1766573305368,-366.23526076,0.00014596,2]
[399629006,1766573305394,-300.0,0.00014596,2]
[399629007,1766573305421,-1200.0,0.00014596,2]
[399629008,1766573305446,-195.0,0.00014596,2]
[399629009,1766573305470,-195.0,0.00014596,2]
[399629010,1766573305495,-366.23526076,0.00014596,2]
[399629011,1766573305518,-366.23526076,0.00014596,2]
[399629012,1766573305542,-1438.8540389,0.00014596,2]
[399629013,1766573305571,-600.0,0.00014596,2]
[399629014,1766573305598,-195.0,0.00014596,2]
[399629015,1766573305624,-300.0,0.00014596,2]
[399629016,1766573305650,-250.0,0.00014596,2]
[399629017,1766573305675,-600.0,0.00014597,2]
[399629018,1766573305699,-600.0,0.00014597,2]
[399629019,1766573305723,-300.0,0.00014597,2]
[399629020,1766573305746,-300.0,0.00014597,2]
[399629021,1766573305771,-250.0,0.00014597,2]
[399629022,1766573305794,-1506.5266,0.00014597,2]
[399629023,1766573305818,-2500.0,0.00014597,2]
[399629024,1766573305841,-1489.47687703,0.00014597,4]
[399629025,1766573306266,-193.54890697,0.00014597,2]
[399629026,1766573306291,-150.0,0.00014597,2]
[399629027,1766573306315,-300.0,0.00014597,2]
[399629028,1766573306339,-11259.88779482,0.00014598,2]
[399629029,1766573370942,10000.01,0.00014498,2]
[399629030,1766573370967,10000.01,0.00014498,2]
[399629031,1766573371437,10000.01,0.00014498,2]
[399629032,1766573371465,10000.01,0.00014498,2]
[399629033,1766573396081,811.63422039,0.00014498,2]
[399629034,1766573399961,1500.0,0.00013844,2]
[399629035,1766573401881,300.0,0.00014497,2]
[399629036,1766573401985,300.0,0.00014497,2]
[399629037,1766573402165,1200.0,0.00014497,2]
[399629038,1766573403887,1201.82,0.00014488,2]
[399629039,1766573404121,1201.82,0.00014488,2]
[399629040,1766573404334,1201.82,0.00014488,2]
[399629041,1766573404566,1201.82,0.00014488,2]
[399629042,1766573404779,1081.09577961,0.00014488,2]
[399629043,1766573404803,120.72422039,0.00014488,2]
[399629044,1766573405955,305.18,0.00014488,2]
[399629045,1766573406172,305.18,0.00014488,2]
[399629049,1766573432159,-540.54142778,0.00014498,2]
[399629050,1766573432171,-623.96038756,0.00014498,2]
[399629051,1766573432183,-482.13,0.00014498,2]
[399629052,1766573432246,-57467.30824593,0.00014498,2]
[399629053,1766573432262,-529.82070828,0.00014498,2]
[399629054,1766573432287,-2178.95589453,0.00014498,2]
[399629055,1766573432299,-827.08473548,0.00014498,2]
[399629056,1766573432311,-3039.66725529,0.00014498,2]
[399629057,1766573432322,-448.54201431,0.00014498,2]
[399629058,1766573432351,-1309.68764366,0.00014498,2]
[399629059,1766573432362,-4953.798,0.00014498,2]
[399629060,1766573432374,-787.27893922,0.00014498,2]
[399629061,1766573432386,-2389.94928522,0.00014498,2]
[399629063,1766573432440,-10208.78405568,0.00014498,2]
[399629077,1766573433076,500.0,0.00014497,2]
[399629078,1766573433163,179.19809724,0.00014497,2]
[399629079,1766573433235,273.92038601,0.00014497,2]
[399629080,1766573433777,506.76431867,0.00014497,2]
[399629081,1766573435434,500.0,0.00014497,2]
[399629082,1766573435501,500.0,0.00014497,2]
[399629083,1766573435566,500.0,0.00014497,2]
[399629084,1766573435638,500.0,0.00014497,2]
[399629085,1766573435688,551.42672341,0.00014497,2]
[399629092,1766573438253,-526.48999981,0.00014498,2]
[399629093,1766573438304,-392.59463394,0.00014498,2]
[399629094,1766573438316,-6173.24549921,0.00014498,2]
[399629097,1766573438360,-867120.1212741,0.00014498,2]
[399629098,1766573438371,-23068.1033,0.00014597,2]
[399629099,1766573438381,-2500.0,0.00014597,2]
[399629100,1766573438392,-9318.4300702,0.00014598,2]
[399629101,1766573438402,-20538.73107194,0.00014598,2]
[399629102,1766573438418,-300.0,0.00014605,2]
[399629103,1766573438428,-250.0,0.00014605,2]
[399629104,1766573438438,-600.0,0.00014612,2]
[399629105,1766573438449,-195.0,0.00014612,2]
[399629106,1766573438461,-500.0,0.00014625,2]
[399629107,1766573438471,-500.0,0.00014625,2]
[399629108,1766573438483,-500.0,0.00014625,2]
[399629109,1766573438493,-151.75927975,0.00014625,2]
[399629110,1766573438504,-500.0,0.00014625,2]
[399629111,1766573438515,-150.0,0.00014625,2]
[399629112,1766573438526,-497.0,0.00014625,2]
[399629113,1766573438536,-500.0,0.00014625,2]
[399629114,1766573438546,-500.0,0.00014625,2]
[399629115,1766573438557,-150.0,0.00014625,2]
[399629116,1766573438567,-500.0,0.00014625,2]
[399629117,1766573438578,-300.0,0.00014627,2]
[399629118,1766573438588,-600.0,0.0001465,2]
[399629119,1766573438603,-195.0,0.0001465,2]
[399629120,1766573438614,-1002.8809457,0.00014651,2]
[399629121,1766573438624,-8029.13211673,0.00014652,5]
[399629123,1766573438635,-569.88171229,0.00014652,2]
[399629126,1766573438646,-500.0,0.00014652,2]
[399629128,1766573438656,-500.0,0.00014652,2]
[399629130,1766573438668,-500.0,0.00014652,2]
[399629132,1766573438678,-156.7431376,0.00014652,2]
[399629133,1766573438688,-497.0,0.00014652,2]
[399629136,1766573438699,-511.31387808,0.00014652,2]
[399629138,1766573438710,-500.0,0.00014652,2]
[399629140,1766573438719,-500.0,0.00014652,2]
[399629142,1766573438730,-150.9439251,0.00014652,2]
[399629144,1766573438740,-504.56733337,0.0001468,2]
[399629146,1766573438750,-500.0,0.0001468,2]
[399629148,1766573438760,-554.97447821,0.0001468,2]
[399629150,1766573438771,-497.0,0.0001468,2]
[399629152,1766573438786,-500.0,0.0001468,2]
[399629154,1766573438797,-500.0,0.0001468,2]
[399629156,1766573438807,-151.0,0.00014695,2]
[399629158,1766573438818,-500.0,0.00014696,2]
[399629160,1766573438828,-1244.21357412,0.00014696,5]
[399629163,1766573438839,-500.0,0.00014696,2]
[399629165,1766573438849,-500.0,0.00014696,2]
[399629167,1766573438859,-500.0,0.00014696,2]
[399629169,1766573438870,-500.0,0.00014696,2]
[399629171,1766573438880,-500.0,0.00014696,2]
[399629173,1766573438890,-345.61944789,0.00014696,2]
[399629175,1766573438900,-500.0,0.00014696,2]
[399629177,1766573438911,-500.0,0.00014696,2]
[399629179,1766573438922,-500.0,0.00014696,2]
[399629181,1766573438932,-500.0,0.00014696,2]
[399629183,1766573438944,-500.0,0.00014696,2]
[399629185,1766573438953,-500.0,0.00014696,2]
[399629187,1766573438965,-500.0,0.00014696,2]
[399629189,1766573438975,-500.0,0.00014696,2]
[399629190,1766573438989,-1472.008,0.00014696,2]
[399629192,1766573438999,-186.749,0.00014696,2]
[399629194,1766573439009,-500.0,0.00014696,2]
[399629195,1766573439019,-500.0,0.00014696,2]
[399629196,1766573439029,-500.0,0.00014696,2]
[399629197,1766573439039,-570.5676631,0.00014696,2]
[399629198,1766573439050,-500.0,0.00014696,2]
[399629199,1766573439060,-500.0,0.00014696,2]
[399629200,1766573439070,-500.0,0.00014696,2]
[399629201,1766573439080,-500.0,0.00014696,2]
[399629202,1766573439090,-500.0,0.00014696,2]
[399629203,1766573439099,-500.0,0.00014696,2]
[399629204,1766573439110,-500.0,0.00014696,2]
[399629205,1766573439120,-500.0,0.00014696,2]
[399629206,1766573439136,-500.0,0.00014696,2]
[399629207,1766573439147,-500.0,0.00014696,2]
[399629208,1766573439157,-500.0,0.00014696,2]
[399629209,1766573439167,-500.0,0.00014696,2]
[399629210,1766573439177,-500.0,0.00014696,2]
[399629211,1766573439188,-500.0,0.00014696,2]
[399629212,1766573439198,-500.0,0.00014696,2]
[399629213,1766573439209,-500.0,0.00014696,2]
[399629214,1766573439220,-500.0,0.00014696,2]
[399629215,1766573439230,-500.0,0.00014696,2]
[399629216,1766573439241,-500.0,0.00014696,2]
[399629217,1766573439252,-500.0,0.00014696,2]
[399629218,1766573439263,-500.0,0.00014696,2]
[399629219,1766573439273,-500.0,0.00014696,2]
[399629220,1766573439283,-500.0,0.00014696,2]
[399629221,1766573439294,-500.0,0.00014696,2]
[399629222,1766573439304,-500.0,0.00014696,2]
[399629223,1766573439315,-500.0,0.00014696,2]
[399629224,1766573439326,-2137.14,0.00014696,2]
[399629225,1766573439339,-150.0,0.00014696,2]
[399629226,1766573439350,-21261.4566,0.00014698,2]
[399629227,1766573439361,-1000.0,0.00014698,2]
[399629228,1766573439371,-154.41523631,0.00014707,2]
[399629229,1766573439381,-497.0,0.00014707,2]
[399629230,1766573439392,-500.0,0.00014707,2]
[399629231,1766573439402,-500.0,0.00014707,2]
[399629232,1766573439412,-11126.59200013,0.00014731,2]
[399629233,1766573439422,-497.0,0.00014735,2]
[399629234,1766573439432,-645.39200944,0.00014735,2]
[399629235,1766573439442,-500.0,0.00014735,2]
[399629236,1766573439452,-497.0,0.00014762,2]
[399629237,1766573439462,-500.0,0.00014762,2]
[399629238,1766573439472,-497.0,0.00014789,2]
[399629239,1766573439482,-500.0,0.00014789,2]
[399629240,1766573439492,-1244.21357412,0.00014796,5]
[399629241,1766573439502,-500.0,0.00014797,2]
[399629242,1766573439512,-500.0,0.00014797,2]
[399629243,1766573439522,-500.0,0.00014797,2]
[399629244,1766573439532,-516.02053629,0.00014797,2]
[399629245,1766573439542,-500.0,0.00014797,2]
[399629246,1766573439552,-500.0,0.00014797,2]
[399629247,1766573439562,-349.26999972,0.00014797,2]
[399629248,1766573439571,-500.0,0.00014797,2]
[399629249,1766573439582,-500.0,0.00014797,2]
[399629250,1766573439593,-500.0,0.00014797,2]
[399629251,1766573439604,-557.08917325,0.00014797,2]
[399629252,1766573439614,-500.0,0.00014797,2]
[399629253,1766573439624,-500.0,0.00014797,2]
[399629254,1766573439635,-500.0,0.00014797,2]
[399629255,1766573439645,-500.0,0.00014797,2]
[399629256,1766573439655,-500.0,0.00014797,2]
[399629257,1766573439666,-500.0,0.00014797,2]
[399629258,1766573439676,-500.0,0.00014797,2]
[399629259,1766573439686,-528.10208627,0.00014797,2]
[399629260,1766573439696,-500.0,0.00014797,2]
[399629261,1766573439706,-500.0,0.00014797,2]
[399629262,1766573439728,-500.0,0.00014797,2]
[399629263,1766573439739,-500.0,0.00014797,2]
[399629264,1766573439749,-530.21490798,0.00014797,2]
[399629265,1766573439759,-500.0,0.00014797,2]
[399629276,1766573440204,-398.68934422,0.00014797,2]
[399629277,1766573440214,-500.0,0.00014797,2]
[399629278,1766573440225,-500.0,0.00014797,2]
[399629279,1766573440234,-500.0,0.00014797,2]
[399629280,1766573440244,-500.0,0.00014797,2]
[399629281,1766573440254,-364.71354413,0.00014797,2]
[399629282,1766573440264,-500.0,0.00014797,2]
[399629283,1766573440274,-500.0,0.00014797,2]
[399629284,1766573440284,-500.0,0.00014797,2]
[399629285,1766573440293,-582.59898014,0.00014797,2]
[399629286,1766573440303,-500.0,0.00014797,2]
[399629287,1766573440313,-500.0,0.00014797,2]
[399629288,1766573440323,-500.0,0.00014797,2]
[399629289,1766573440332,-500.0,0.00014797,2]
[399629290,1766573440343,-500.0,0.00014797,2]
[399629291,1766573440353,-543.18761393,0.00014797,2]
[399629292,1766573440363,-500.0,0.00014797,2]
[399629293,1766573440373,-500.0,0.00014797,2]
[399629294,1766573440383,-500.0,0.00014797,2]
[399629295,1766573440394,-512.7999143,0.00014797,2]
[399629296,1766573440404,-500.0,0.00014797,2]
[399629297,1766573440413,-500.0,0.00014797,2]
[399629298,1766573440423,-500.0,0.00014797,2]
[399629299,1766573440433,-500.0,0.00014797,2]
[399629300,1766573440443,-500.0,0.00014797,2]
[399629301,1766573440453,-500.0,0.00014797,2]
[399629302,1766573440463,-500.0,0.00014797,2]
[399629303,1766573440473,-500.0,0.00014797,2]
[399629304,1766573440482,-526.00597189,0.00014797,2]
[399629305,1766573440491,-500.0,0.00014797,2]
[399629306,1766573440501,-500.0,0.00014797,2]
[399629307,1766573440511,-500.0,0.00014797,2]
[399629308,1766573440521,-500.0,0.00014797,2]
[399629309,1766573440531,-500.0,0.00014797,2]
[399629310,1766573440541,-500.0,0.00014797,2]
[399629311,1766573440551,-500.0,0.00014797,2]
[399629312,1766573440561,-500.0,0.00014797,2]
[399629313,1766573440571,-500.0,0.00014797,2]
[399629314,1766573440581,-500.0,0.00014797,2]
[399629315,1766573440592,-500.0,0.00014797,2]
[399629316,1766573440608,-500.0,0.00014797,2]
[399629317,1766573440619,-500.0,0.00014797,2]
[399629318,1766573440629,-500.0,0.00014797,2]
[399629319,1766573440645,-504.00842386,0.00014797,2]
[399629321,1766573440663,-500.0,0.00014797,2]
[399629323,1766573440676,-411.98933297,0.00014797,2]
[399629325,1766573440686,-500.0,0.00014797,2]
[399629327,1766573440696,-500.0,0.00014797,2]
[399629329,1766573440707,-500.0,0.00014797,2]
[399629331,1766573440725,-500.0,0.00014797,2]
[399629333,1766573440734,-500.0,0.00014797,2]
[399629335,1766573440743,-500.0,0.00014797,2]
[399629337,1766573440753,-500.0,0.00014797,2]
[399629339,1766573440762,-500.0,0.00014797,2]
[399629341,1766573440771,-500.0,0.00014797,2]
[399629344,1766573440781,-500.0,0.00014797,2]
[399629345,1766573440791,-500.0,0.00014797,2]
[399629346,1766573440801,-500.0,0.00014797,2]
[399629347,1766573440810,-500.0,0.00014797,2]
[399629348,1766573440819,-500.0,0.00014797,2]
[399629349,1766573440829,-500.0,0.00014797,2]
[399629350,1766573440839,-500.0,0.00014797,2]
[399629351,1766573440848,-500.0,0.00014797,2]
[399629352,1766573440858,-500.0,0.00014797,2]
[399629353,1766573440868,-500.0,0.00014797,2]
[399629354,1766573440878,-500.0,0.00014797,2]
[399629355,1766573440888,-500.0,0.00014797,2]
[399629356,1766573440897,-500.0,0.00014797,2]
[399629357,1766573440907,-500.0,0.00014797,2]
[399629358,1766573440917,-500.0,0.00014797,2]
[399629359,1766573440928,-500.0,0.00014797,2]
[399629360,1766573440937,-500.0,0.00014797,2]
[399629361,1766573440947,-500.0,0.00014797,2]
[399629362,1766573440956,-500.0,0.00014797,2]
[399629363,1766573440966,-500.0,0.00014797,2]
[399629364,1766573440976,-551.85860917,0.00014797,2]
[399629365,1766573440986,-497.0,0.00014817,2]
[399629366,1766573440996,-500.0,0.00014817,2]
[399629367,1766573441006,-811.63422037,0.00014841,2]
[399629368,1766573441015,-1191.16039457,0.00014844,2]
[399629369,1766573441025,-497.0,0.00014844,2]
[399629370,1766573441035,-500.0,0.00014844,2]
[399629371,1766573441045,-20578.317865,0.00014854,2]
[399629372,1766573441055,-20538.73107193,0.00014854,2]
[399629373,1766573441064,-497.0,0.00014872,2]
[399629374,1766573441074,-500.0,0.00014872,2]
[399629375,1766573441084,-497.0,0.00014899,2]
[399629376,1766573441094,-465.63377507,0.00014899,2]
[399629377,1766573441104,-497.0,0.00014926,2]
[399629378,1766573441114,-500.0,0.00014944,2]
[399629379,1766573441125,-497.0,0.00014954,2]
[399629380,1766573441134,-502.99520475,0.0001497,2]
[399629381,1766573441144,-2137.14,0.0001497,2]
[399629382,1766573441155,-150.0,0.00014972,2]
[399629383,1766573441165,-497.0,0.00014981,2]
[399629384,1766573441175,-500.0,0.00014999,2]
[399629385,1766573441184,-500.0,0.00014999,2]
[399629386,1766573441194,-500.0,0.00014999,2]
[399629387,1766573441204,-500.0,0.00014999,2]
[399629388,1766573441215,-500.0,0.00014999,2]
[399629389,1766573441225,-500.0,0.00014999,2]
[399629390,1766573441235,-500.0,0.00014999,2]
[399629391,1766573441245,-500.0,0.00014999,2]
[399629392,1766573441255,-500.0,0.00014999,2]
[399629393,1766573441267,-500.0,0.00014999,2]
[399629394,1766573441276,-497.0,0.00015009,2]
[399629395,1766573441286,-497.0,0.00015036,2]
[399629396,1766573441296,-497.0,0.00015063,2]
[399629397,1766573441306,-497.0,0.00015091,2]
[399629398,1766573441316,-20578.317865,0.0001511,2]
[399629399,1766573441326,-20538.73107193,0.0001511,2]
[399629400,1766573441335,-497.0,0.00015118,2]
[399629401,1766573441345,-497.0,0.00015146,2]
[399629402,1766573441354,-500.0,0.00015156,2]
[399629403,1766573441365,-500.0,0.00015156,2]
[399629404,1766573441376,-500.0,0.00015156,2]
[399629405,1766573441387,-500.0,0.00015156,2]
[399629406,1766573441397,-500.0,0.00015156,2]
[399629407,1766573441407,-500.0,0.00015156,2]
[399629408,1766573441417,-470.56873009,0.00015156,2]
[399629409,1766573441427,-500.0,0.00015156,2]
[399629410,1766573441438,-521.52385313,0.00015156,2]
[399629411,1766573441448,-18587.16,0.00015157,2]
[399629412,1766573441458,-500.0,0.00015173,2]
[399629413,1766573441468,-161.57308931,0.00015173,2]
[399629414,1766573441478,-500.0,0.00015173,2]
[399629415,1766573441488,-163.19223575,0.00015173,2]
[399629416,1766573441499,-550.49299637,0.00015173,2]
[399629417,1766573441509,-500.0,0.00015173,2]
[399629418,1766573441519,-172.85820104,0.00015173,2]
[399629419,1766573441530,-562.564449,0.00015173,2]
[399629420,1766573441540,-500.0,0.00015173,2]
[399629421,1766573441550,-167.20691349,0.00015173,2]
[399629422,1766573441560,-500.0,0.00015173,2]
[399629423,1766573441571,-500.37919946,0.00015173,2]
[399629424,1766573441581,-500.08479975,0.00015173,2]
[399629425,1766573441593,-500.0,0.00015173,2]
[399629426,1766573441604,-500.0,0.00015173,2]
[399629427,1766573441614,-500.0,0.00015173,2]
[399629428,1766573441625,-500.0,0.00015173,2]
[399629429,1766573441636,-500.0,0.00015173,2]
[399629430,1766573441646,-176.76151573,0.00015173,2]
[399629431,1766573441656,-169.37257746,0.00015173,2]
[399629432,1766573441669,-174.83400543,0.00015173,2]
[399629433,1766573441679,-500.0,0.00015173,2]
[399629434,1766573441689,-500.0,0.00015173,2]
[399629435,1766573441698,-500.0,0.00015173,2]
[399629436,1766573441709,-500.0,0.00015173,2]
[399629437,1766573441719,-453.84632834,0.00015173,2]
[399629438,1766573441729,-500.0,0.00015173,2]
[399629439,1766573441739,-500.0,0.00015173,2]
[399629440,1766573441749,-500.0,0.00015173,2]
[399629441,1766573441759,-224.16527175,0.00015173,2]
[399629442,1766573441769,-500.0,0.00015173,2]
[399629443,1766573441779,-500.0,0.00015173,2]
[399629444,1766573441789,-162.2863667,0.00015173,2]
[399629445,1766573441798,-500.0,0.00015173,2]
[399629446,1766573441808,-500.0,0.00015173,2]
[399629447,1766573441819,-500.0,0.00015173,2]
[399629448,1766573441829,-500.0,0.00015173,2]
[399629449,1766573441839,-500.0,0.00015173,2]
[399629450,1766573441850,-500.0,0.00015173,2]
[399629451,1766573441860,-500.0,0.00015173,2]
[399629452,1766573441870,-500.0,0.00015173,2]
[399629453,1766573441879,-500.0,0.00015173,2]
[399629454,1766573441889,-497.0,0.00015173,2]
[399629455,1766573441899,-226.5,0.00015187,2]
[399629456,1766573441909,-197.88,0.00015187,2]
[399629457,1766573441919,-497.0,0.000152,2]
[399629458,1766573441928,-497.0,0.00015228,2]
[399629459,1766573441938,-2137.14,0.00015244,2]
[399629460,1766573441948,-520.21768034,0.00015255,2]
[399629461,1766573441958,-150.0,0.00015288,2]
[399629462,1766573441968,-150.0,0.00015288,2]
[399629463,1766573441977,-150.0,0.00015288,2]
[399629464,1766573441987,-152.81357025,0.00015288,2]
[399629465,1766573441997,-150.0,0.00015288,2]
[399629466,1766573442007,-150.0,0.00015288,2]
[399629467,1766573442017,-150.0,0.00015288,2]
[399629468,1766573442027,-150.0,0.00015288,2]
[399629469,1766573442037,-152.31137415,0.00015288,2]
[399629470,1766573442047,-150.00000001,0.00015288,2]
[399629471,1766573442057,-150.0,0.00015288,2]
[399629472,1766573442067,-150.0,0.00015288,2]
[399629473,1766573442076,-150.0,0.00015288,2]
[399629474,1766573442085,-150.0,0.00015288,2]
[399629475,1766573442095,-4999.99,0.0001531,2]
[399629476,1766573442106,-9999.99,0.0001531,2]
[399629477,1766573442116,-299.99,0.0001531,2]
[399629478,1766573442127,-150.99,0.0001531,2]
[399629479,1766573442137,-333.22,0.0001531,2]
[399629480,1766573442147,-1577.15,0.0001531,2]
[399629481,1766573442158,-7622.43,0.0001531,2]
[399629482,1766573442168,-999.99,0.0001531,2]
[399629483,1766573442178,-13357.38,0.0001531,2]
[399629484,1766573442187,-9999.99,0.0001531,2]
[399629485,1766573442197,-9999.99,0.0001531,2]
[399629486,1766573442208,-9999.99,0.0001531,2]
[399629487,1766573442222,-150.99,0.0001531,2]
[399629488,1766573442231,-9999.99,0.0001531,2]
[399629489,1766573442241,-18127.53,0.0001531,2]
[399629490,1766573442252,-220.74,0.00015332,2]
[399629491,1766573442261,-20578.317865,0.00015365,2]
[399629492,1766573442272,-20538.73107193,0.00015365,2]
[399629493,1766573442282,-151.0,0.00015396,2]
[399629494,1766573442292,-150.0,0.00015401,2]
[399629495,1766573442302,-151.0,0.00015427,2]
[399629496,1766573442314,-359.55,0.00015432,2]
[399629497,1766573442323,-1000.0,0.00015465,2]
[399629498,1766573442334,-150.0,0.00015476,2]
[399629499,1766573442344,-151.0,0.00015478,2]
[399629500,1766573442354,-151.0,0.00015478,2]
[399629501,1766573442363,-151.0,0.00015482,2]
[399629502,1766573442373,-151.0,0.00015482,2]
[399629503,1766573442383,-150.0,0.00015514,2]
[399629504,1766573442393,-2137.14,0.00015518,2]
[399629505,1766573442402,-150.0,0.0001553,2]
[399629506,1766573442413,-150.0,0.0001553,2]
[399629507,1766573442424,-150.0,0.0001553,2]
[399629508,1766573442433,-150.0,0.0001553,2]
[399629509,1766573442444,-150.0,0.00015571,2]
[399629510,1766573442454,-200.0,0.00015592,2]
[399629511,1766573442464,-207.4,0.00015592,2]
[399629512,1766573442473,-215.0738,0.00015592,2]
[399629513,1766573442482,-223.0315306,0.00015592,2]
[399629514,1766573442492,-231.28369723,0.00015592,2]
[399629515,1766573442502,-239.84119403,0.00015592,2]
[399629516,1766573442512,-248.71531821,0.00015592,2]
[399629517,1766573442522,-257.91778498,0.00015592,2]
[399629518,1766573442532,-267.46074303,0.00015592,2]
[399629519,1766573442542,-500.0,0.00015592,2]
[399629520,1766573442552,-277.35679052,0.00015592,2]
[399629521,1766573442562,-500.0,0.00015592,2]
[399629522,1766573442571,-500.0,0.00015592,2]
[399629523,1766573442581,-500.0,0.00015592,2]
[399629524,1766573442590,-500.0,0.00015592,2]
[399629525,1766573442604,-500.0,0.00015592,2]
[399629526,1766573442614,-500.0,0.00015592,2]
[399629527,1766573442624,-500.0,0.00015592,2]
[399629528,1766573442635,-500.0,0.00015592,2]
[399629529,1766573442645,-500.0,0.00015592,2]
[399629530,1766573442654,-500.0,0.00015592,2]
[399629531,1766573442663,-500.0,0.00015592,2]
[399629532,1766573442673,-500.0,0.00015592,2]
[399629533,1766573442682,-500.0,0.00015592,2]
[399629534,1766573442693,-500.0,0.00015592,2]
[399629535,1766573442703,-500.0,0.00015592,2]
[399629536,1766573442713,-500.0,0.00015592,2]
[399629537,1766573442722,-259.02685211,0.00015592,2]
[399629538,1766573442732,-500.0,0.00015592,2]
[399629539,1766573442742,-500.0,0.00015592,2]
[399629540,1766573442752,-500.0,0.00015592,2]
[399629541,1766573442762,-500.0,0.00015592,2]
[399629542,1766573442771,-500.0,0.00015592,2]
[399629543,1766573442781,-500.0,0.00015592,2]
[399629544,1766573442791,-500.0,0.00015592,2]
[399629545,1766573442802,-500.0,0.00015592,2]
[399629546,1766573442812,-500.0,0.00015592,2]
[399629547,1766573442822,-500.0,0.00015592,2]
[399629548,1766573442832,-500.0,0.00015592,2]
[399629549,1766573442841,-500.0,0.00015592,2]
[399629550,1766573442852,-500.0,0.00015592,2]
[399629551,1766573442862,-500.0,0.00015592,2]
[399629552,1766573442872,-714.61817831,0.00015592,2]
[399629553,1766573442882,-500.0,0.00015592,2]
[399629554,1766573442892,-500.0,0.00015592,2]
[399629555,1766573442901,-500.0,0.00015592,2]
[399629556,1766573442911,-500.0,0.00015592,2]
[399629557,1766573442920,-500.0,0.00015592,2]
[399629558,1766573442930,-578.20924308,0.00015592,2]
[399629559,1766573442940,-500.0,0.00015592,2]
[399629560,1766573442950,-500.0,0.00015592,2]
[399629561,1766573442960,-500.0,0.00015592,2]
[399629562,1766573442970,-500.0,0.00015592,2]
[399629563,1766573442980,-500.0,0.00015592,2]
[399629566,1766573442990,-620.0,0.00015592,2]
[399629568,1766573443000,-253.74257372,0.00015592,2]
[399629569,1766573443010,-151.0,0.00015592,2]
[399629572,1766573443020,-156.587,0.00015592,2]
[399629573,1766573443031,-162.380719,0.00015592,2]